Cogmind - Beta 12 @@@ ROGUE MODE // 2023.07.26 @ 13:41:22 Player: ILikeVoltron Result: Self-destructed Performance ------------- Evolutions (1) 500 Regions Visited (2) 400 Robots Destroyed (26) 130 Value Destroyed (526) 526 Prototype IDs (0) 0 Alien Tech Used (0) 0 Bonus (0) 0 TOTAL SCORE: 1556 Bonus ------- None Cogmind --------- Core Integrity 248/400 Matter 259/300 Energy 249/265 System Corruption 0% Temperature Cool (0) Movement Walking (190) Ox1 Location -9/Materials Parts ------- > --- POWER (1) -------- Improved Ion Engine > --- PROPULSION (3) --- Aluminum Leg Aluminum Leg Improved Aluminum Leg > --- UTILITY (3) ------ Large Storage Unit Light Armor Plating Hardlight Generator > --- WEAPON (2) ------- Light Assault Rifle Heavy Assault Rifle > --- INVENTORY (15) --- Light Treads Aluminum Leg Aluminum Leg Aluminum Leg Cooling System Medium Storage Unit Small Matter Pod (50) Weight Redist. System Signal Interpreter ECM Suite Trap Extractor (0/4) Medium Laser Particle Gun Assault Rifle Mining Laser Peak State ------------ > --- POWER ------------ Light Ion Engine > --- PROPULSION ------- Improved Aluminum Leg Armored Wheel Armored Wheel > --- UTILITY ---------- Large Storage Unit Reflective Plating Hardlight Generator > --- WEAPON ----------- Shock Rifle Shock Rifle > --- INVENTORY -------- Light Treads Aluminum Leg Aluminum Leg Medium Storage Unit Small Matter Pod Weight Redist. System Signal Interpreter ECM Suite Propulsion Shielding Trap Extractor Medium Laser Particle Gun Assault Rifle Mining Laser [Rating: 21] Favorites ----------- Power Light Ion Engine Engine Light Ion Engine Propulsion Armored Wheel Leg Aluminum Leg Wheel Armored Wheel Utility Large Storage Unit Device Hardlight Generator Storage Large Storage Unit Protection Propulsion Shielding Weapon Particle Gun Energy Gun Particle Gun Ballistic Gun Light Assault Rifle Build | -11 -10 -9 ------- Run | Jun Mat Mat Slots Evolved 2 | . . 2 Power . | . . . Propulsion 1 | . . 1 Utility 1 | . . 1 Weapon . | . . . Parts Attached 35 | . 11 24 Power 4 | . . 4 Engine 4 | . . 4 Core . | . . . Reactor . | . . . Propulsion 11 | . 2 9 Treads . | . . . Leg 9 | . . 9 Wheel 2 | . 2 . Hover . | . . . Flight . | . . . Utility 9 | . 5 4 Device 3 | . 2 1 Storage 2 | . 2 . Processor . | . . . Hackware . | . . . Protection 4 | . 1 3 Artifact . | . . . Weapon 11 | . 4 7 Energy Gun 7 | . 4 3 Energy Cannon . | . . . Ballistic Gun 4 | . . 4 Ballistic Cannon . | . . . Launcher . | . . . Special Weapon . | . . . Impact Weapon . | . . . Slashing Weapon . | . . . Piercing Weapon . | . . . Special Melee Weapon . | . . . Unidentified Prototypes . | . . . Parts Lost 5 | . 2 3 Power 1 | . 1 . Propulsion 2 | . . 2 Utility 1 | . . 1 Weapon 1 | . 1 . Highest Loss Streak 2 | . 2 1 To Critical Strikes . | . . . Average Slot Usage (%) 96 | . 96 95 Engine 11 | . 12 9 Leg 15 | . 6 24 Wheel 13 | . 21 6 Device 9 | . 9 10 Storage 12 | . 14 11 Protection 7 | . 4 10 Energy Gun 15 | . 25 5 Ballistic Gun 9 | . 1 16 Naked Turns . | . . . Heaviest Build 39 | 12 31 39 Greatest Support 33 | 20 24 33 Greatest Overweight (x) 2 | . 1 2 Average Overweight (x) . | . . . Largest Inventory Capacity 15 | 8 15 15 Average Capacity 14 | 8 13 15 Most Carried 15 | 6 15 15 Average Carried 12 | 6 10 14 Final Capacity 15 | 8 15 15 Final Carried 15 | 6 15 15 Class Distribution -------------------- 66% | Mutant 33% | Scavenger-Mutant Dominant Class ---------------- Mutant | -10/Materials Scavenger-Mutant | -9/Materials Resources | -11 -10 -9 ----------- Run | Jun Mat Mat Matter Collected 708 | 200 113 395 Remotely . | . . . Salvage Created 723 | . 178 545 Parts 58 | . 16 42 Haulers Intercepted . | . . . Recyclers Shooed . | . . . Parts Field Recycled . | . . . Retrieved Matter . | . . . Parts Self-Destructed . | . . . Prevented . | . . . Kills | -11 -10 -9 ------- Run | Jun Mat Mat Combat Hostiles Destroyed 21 | . 4 17 Guns 21 | . 4 17 Classes Destroyed 7 | . 5 2 Worker 1 | . 1 . Recycler 1 | . 1 . Mechanic 1 | . . 1 Watcher 2 | . 1 1 Swarmer 11 | . 3 8 Grunt 9 | . 1 8 Sentry 1 | . . 1 Best Kill Streak 4 | . 3 4 Combat Bots Only 4 | . 3 4 Max Kills in Single Turn 1 | . 1 1 Gunslinging . | . . . Exploded . | . . . Melee . | . . . Uniques/NPCs Destroyed . | . . . Combat | -11 -10 -9 -------- Run | Jun Mat Mat Damage Taken 1237 | . 516 721 Core 207 | . 55 152 Absorbed by Shields 292 | . . 292 Redirected to Shielding 19 | . 14 5 Core Remaining (%) 89 | 100 78 . Volleys Fired 92 | . 20 72 Largest 2 | . 2 2 Hottest 130 | . 130 100 Shots Fired 176 | . 40 136 Gun 176 | . 40 136 Cannon . | . . . Launcher . | . . . Special . | . . . Kinetic 126 | . . 126 Thermal 40 | . 40 . Explosive . | . . . Electromagnetic 10 | . . 10 Robot Hit Streak 19 | . 6 19 Robot Miss Streak 6 | . 4 6 Penetration Max . | . . . Secondary Targets 3 | . 1 2 Max Gunslinging Chain 1 | . 1 1 Shots Hit Robots 107 | . 20 87 Core Hits 44 | . 9 35 Critical Kills . | . . . Critical Parts Destroyed 2 | . . 2 Critical Strikes 3 | . 1 2 Burn 1 | . 1 . Destroy 2 | . . 2 Melee Attacks . | . . . Impact . | . . . Slashing . | . . . Piercing . | . . . Sneak Attacks . | . . . Combat Hostiles . | . . . Follow-up Attacks . | . . . Damage Inflicted 1236 | . 367 869 Guns 1236 | . 367 869 Cannons . | . . . Explosions . | . . . Melee . | . . . Ramming . | . . . Kinetic 822 | . . 822 Thermal 367 | . 367 . Explosive . | . . . Electromagnetic 47 | . . 47 Impact . | . . . Slashing . | . . . Piercing . | . . . Highest Corruption . | . . . Average Corruption . | . . . Corruption Purged . | . . . Corruption Blocked . | . . . Overload Shots . | . . . Overflow Damage . | . . . Projectiles . | . . . Explosions . | . . . Melee . | . . . Knockbacks . | . . . Impact . | . . . Kinetic . | . . . Secondary . | . . . Self-Inflicted Damage . | . . . Shots . | . . . Rammed . | . . . Targets Rammed . | . . . Kicked . | . . . Crushed . | . . . Highest Temperature 276 | . 276 117 Average Temperature 58 | . 99 15 Received Heat Transfer 491 | . 276 215 Siege Activations . | . . . Robots Corrupted . | . . . Combat Hostiles . | . . . Parts Fried . | . . . Impact Corruptions . | . . . Robots Melted . | . . . Combat Hostiles . | . . . Parts Melted 1 | . 1 . Heat Transferred 925 | . 925 . Parts Sabotaged . | . . . Parts Stolen . | . . . Parts Stripped . | . . . Power Chain Reactions . | . . . Missiles Intercepted . | . . . Alert | -11 -10 -9 ------- Run | Jun Mat Mat Peak Influence 347 | . 95 347 Initial 32 | . . 32 Average 122 | . 50 192 Maximum Alert Level 1 | . . 1 Low Security (%) 73 | 100 100 48 Level 1 26 | . . 51 Level 2 . | . . . Level 3 . | . . . Level 4 . | . . . Level 5 . | . . . High Security . | . . . Max Security . | . . . Squads Dispatched 3 | . 2 1 Investigation 1 | . 1 . Extermination . | . . . Reinforcement 2 | . 1 1 Assault . | . . . Garrison . | . . . Intercept . | . . . Searches Triggered . | . . . Construction Impeded . | . . . Haulers Reinforced . | . . . Active Scanning Responses . | . . . Cargo Convoy Interrupts . | . . . Stealth | -11 -10 -9 --------- Run | Jun Mat Mat Distress Signals 2 | . 1 1 Communications Jammed . | . . . Distress Signals . | . . . Times Spotted 40 | . 14 26 Peak Tracking Total 6 | . 5 6 Tactical Retreats 3 | . 2 1 Traps | -11 -10 -9 ------- Run | Jun Mat Mat Traps Triggered 1 | . 1 . Indirectly . | . . . Trap Hack Attempts . | . . . Triggered . | . . . Disarmed . | . . . Reprogrammed . | . . . Reused . | . . . Traps Extracted . | . . . Installed . | . . . Triggered . | . . . Machines | -11 -10 -9 ---------- Run | Jun Mat Mat Machines Disabled . | . . . Max in Single Turn . | . . . Machines Repaired . | . . . Machines Sabotaged . | . . . Overloaded Fab Kills . | . . . Hacking | -11 -10 -9 --------- Run | Jun Mat Mat Machines Accessed 3 | . 3 . Terminals 2 | . 2 . Fabricators . | . . . Repair Stations . | . . . Recycling Units 1 | . 1 . Scanalyzers . | . . . Garrison Access . | . . . Total Hacks 3 | . 3 . Successful 1 | . 1 . Failed 2 | . 2 . Catastrophic 1 | . 1 . Database Lockouts . | . . . Manual 1 | . 1 . Terminals 2 | . 2 . Fabricators . | . . . Repair Stations . | . . . Recycling Units 1 | . 1 . Scanalyzers . | . . . Garrison Access . | . . . Terminal Hacks . | . . . Fabricator Hacks . | . . . Repair Station Hacks . | . . . Recycling Unit Hacks 1 | . 1 . Report Inventory 1 | . 1 . Scanalyzer . | . . . Garrison Access Hacks . | . . . Unauthorized Hacks . | . . . Terminals . | . . . Fabricators . | . . . Repair Stations . | . . . Recycling Units . | . . . Scanalyzers . | . . . Garrison Access . | . . . Data Cores Recovered . | . . . Used . | . . . Hacking Detections 2 | . 2 . Full Trace Events . | . . . Feedback Events . | . . . Feedback Blocked . | . . . Robot Schematics Acquired . | . . . Robots Built . | . . . Authchips . | . . . Time . | . . . Total Robot Build Rating . | . . . Part Schematics Acquired . | . . . Parts Built . | . . . Authchips . | . . . Time . | . . . Total Part Build Rating . | . . . Parts Repaired . | . . . Time . | . . . Parts Recycled . | . . . Recycled Matter . | . . . Retrieved Matter . | . . . Retrieved Components . | . . . Parts Scanalyzed . | . . . Part Schematics Acquired . | . . . Parts Damaged . | . . . Bothacking | -11 -10 -9 ------------ Run | Jun Mat Mat Used RIF Installer . | . . . Robots Hacked . | . . . Non-combat . | . . . Combat . | . . . Robot Hacks Applied . | . . . Relay Couplers Released . | . . . Fabnet Peak Effective % . | . . . Robots Rewired . | . . . Allies Hacked . | . . . Hacks Repelled . | . . . Allies | -11 -10 -9 -------- Run | Jun Mat Mat Total Allies . | . . . Largest Group . | . . . Highest-Rated Group . | . . . Highest-Rated Ally . | . . . Total Orders . | . . . Ally Attacks . | . . . Total Damage . | . . . Kills . | . . . Allies Corrupted . | . . . Allies Melted . | . . . Intel | -11 -10 -9 ------- Run | Jun Mat Mat Robot Analysis Total . | . . . Derelict Logs Recovered . | . . . Drone Launches . | . . . Drone Recoveries . | . . . Exploration | -11 -10 -9 ------------- Run | Jun Mat Mat Turns Passed 1110 | 2 541 567 Spaces Moved 612 | 2 399 211 Core . | . . . Treads . | . . . Legs 260 | 2 85 173 Wheels 352 | . 314 38 Hover . | . . . Flight . | . . . Fastest Speed 90 | 120 90 90 Average Speed 122 | 120 105 153 Slowest Speed 260 | 120 120 260 Overloaded Moves . | . . . Propulsion Burnouts . | . . . Robots Hopped . | . . . Cave-ins Triggered . | . . . Exploration Rate (%) 32 | 2 77 18 Regions Visited 2 Branch Regions . Pre-discovered Areas . | . . . Known Exits Taken . | . . . Unknown Exits Taken 2 | 1 1 . Scrap Searched . | . . . Spaces Dug . | . . . Terrain Destroyed . | . . . Melee . | . . . Projectile . | . . . AOE . | . . . Terrain Rammed . | . . . Walls Destroyed . | . . . Machines Disabled . | . . . Actions | -11 -10 -9 --------- Run | Jun Mat Mat Total 818 | 1 477 340 Wait 47 | . 31 16 Move 610 | 1 398 211 Hop . | . . . Pick Up 9 | . 8 1 Fast Attach 13 | . 3 10 Attach 4 | . 2 2 Detach 3 | . 3 . Swap 18 | . 6 12 Drop 22 | . 6 16 Fire 92 | . 20 72 Melee . | . . . Ram . | . . . Kick . | . . . Crush . | . . . Escape Stasis . | . . . Rewire . | . . . Trap . | . . . Miscellaneous . | . . . Route ------- -11/Junkyard -10/Materials (discovered 2 exits: [*Mat x2]) -9/Materials History --------- Turn | Location | Event 1 | -11/Junkyard | Discovered new exit (range 1) 3 | -11/Junkyard | Entered Materials 200 | -10/Materials | Discovered new exit (range 4) 315 | -10/Materials | Build established: Mutant 539 | -10/Materials | Discovered new exit (range 6) 544 | -10/Materials | Entered another Materials area 544 | -9/Materials | Evolved 2 slots: Propulsion x1, Utility x1 1046 | -9/Materials | Build established: Scavenger-Mutant 1111 | -9/Materials | Self-destructed Last Messages --------------- 01021_ G-34 Mercenary destroyed. 01025_ Dropped Aluminum Leg. 01029_ Acquired 34 matter. 01029_ U-05 Engineer builds a Door. 01031_ W-16 Scout suffers critical hit (Destroy). 01031_ Destroyed Hover Unit. 01032_ Acquired 4 matter. 01034_ Acquired 3 matter. 01036_ R-06 Scavenger collects Sml. Laser. 01040_ M-13 Machinist repairs A-02 Transporter. 01064_ G-34 Mercenary destroyed. 01070_ R-06 Scavenger collects Ion Engine. 01080_ G-34 Mercenary destroyed. 01081_ R-06 Scavenger collects Sml. Laser. 01087_ Dropped Aluminum Leg. 01091_ K-01 Serf collects debris. 01094_ M-13 Machinist destroyed. 01094_ K-01 Serf collects debris. 01103_ Acquired 34 matter. 01105_ K-01 Serf collects debris. Map ----- +----------------------------------------------------+ | ?????????????????????????????????????????????????? | | ?????????????????????????????????????????????????? | | ?????????????????????????????????????????????????? | | ?????????????????????????????????????????????????? | | ?????????????????????????????????????????????????? | | ?????????????????????????????????????????????????? | | ?????????????????????????????????????????????????? | | ?????????????????????????????????????????????????? | | ?????????????????????????????????????????????????? | | ?????????????????????????????????????????????????? | | ?????????????????????????????????????????????????? | | ?????????????????????????????????????????????????? | | ??????????????##########?????????????????????????? | | ??????????????# #????????????????????????? | | ??????????????# """ #????????????????????????? | | ??????????????# "R" #????????????????????????? | | ??????????????# " " """ #????????????????????????? | | ??????????????# """ ##???????????????????????? | | ??????????????# | """ #??????????? ?????????? | | ??????????????# #?????????? ?????????? | | ??????????????# #????????? ?????????? | | ??????????????#####+#####??????? #????????? | | ????????????????# %%######### #????????? | | ????????????????# s ss #????????? | | ????????????????# #????????? | | ??????????????#?# w@ +????????? | | ?????????????? ?# ##k############ #????????? | | ?????????????# ########= #????????????????????? | | ?????????????# #??????# #????????????????????? | | ?????????????# #??????# #????????????????????? | | ??????????# #??????# #????????????????????? | | ??????????# #??????# #????????????????????? | | ??????????# #??????# #????????????????????? | | ??????????# #??????#% #????????????????????? | | ??????????# ######## #????????????????????? | | ??????????# + #????????????????????? | | ??????????# ######## #????????????????????? | | #?????????# #??????# #????????????????????? | | #?????????# #??????# #????????????????????? | | +?????????# #??????#######????????????????????? | | #?????????# #?????????????????????????????????? | | #?????????# #?????????????????????????????????? | | ########??# #?????????????????????????????????? | | # #??# #?????????????????????????????????? | | + #??# #?????????????????????????????????? | | *# ==#??# #?????????????????????????????????? | | / #### #?###########?????????????????????? | | [# *=+ % #?# #?????????????????????? | | # * # %#?# #?????????????????????? | | ######## ### """ """ #?????????????????????? | +----------------------------------------------------+ Best States ------------- Heat Dissipation 38 Energy Generation 12 Energy Capacity 265 Matter Stores 300 Matter Capacity 300 Sight Range 16 Terrain Scan Density 10 ECM Strength 1 Armor Coverage 150 Resistance: TH 10 Propulsion Shielding 33 Evasion (%) 55 Item Schematics ----------------- None Robot Schematics ------------------ None Fabricated ------------ Nothing Alien Tech Used ----------------- None Achievements -------------- None Challenges ------------ None Game ------ Seed NetworkMachineSegregator Manual? 0 Play Time 00:12:10 Cumulative 98.4 hours Start 2023.07.25 @ 18:50:53 End 2023.07.26 @ 13:41:22 Sessions 3 Manual Loads 0 Difficulty Rogue Special Mode None Game No. 150 Rogue 146 Adventurer 0 Explorer 4 Win Type - Total 0 Types 0/0/0/0/0/0/0/0/0 Lore% 25 Gallery% 41 Achievement% 32 Wizard Run 0 Options --------- ASCII 0 Keyboard 1 Movement Arrows Keybinds 0 Fullscreen 2 Font 24/Smallcaps Map View 113x50 Tactical HUD 1 Map Filters NONE Filters NONE Steam 1 RUN: b610629a-4fe8-496c-8177-b36f22aef289